fUSD/lending_fUSD_20250708
["ID","MTS","AMOUNT","RATE_DAILY","PERIOD"]
[370412492,1752006648702,-500.0,0.00024657,2]
[370412493,1752006648711,-460.0,0.00024657,2]
[370412494,1752006648721,-500.0,0.00024657,2]
[370412495,1752006648730,-500.0,0.00024657,2]
[370412496,1752006648739,-500.0,0.00024657,2]
[370412497,1752006648748,-500.0,0.00024657,2]
[370412498,1752006648757,-500.0,0.00024657,2]
[370412499,1752006648767,-1364.95,0.00024657,2]
[370412500,1752006648776,-11701.8,0.00024657,2]
[370412501,1752006648785,-408.58,0.00024657,2]
[370412502,1752006648795,-690.73,0.00024657,2]
[370412503,1752006648804,-460.0,0.00024657,2]
[370412504,1752006648814,-460.0,0.00024657,2]
[370412505,1752006648823,-151.0,0.00024657,7]
[370412506,1752006648832,-151.0,0.00024657,7]
[370412507,1752006648842,-460.0,0.00024657,2]
[370412508,1752006648851,-151.0,0.00024657,7]
[370412509,1752006648860,-460.0,0.00024657,2]
[370412510,1752006648872,-810.52,0.00024657,2]
[370412511,1752006648881,-460.0,0.00024657,2]
[370412512,1752006648891,-1978.02,0.00024657,2]
[370412513,1752006648900,-1370.45,0.00024657,2]
[370412514,1752006648909,-460.0,0.00024657,2]
[370412515,1752006648919,-1886.8,0.00024657,2]
[370412516,1752006648929,-934.92,0.00024657,2]
[370412517,1752006648938,-3394.98,0.00024657,2]
[370412518,1752006648947,-1218.61,0.00024657,2]
[370412519,1752006648957,-460.0,0.00024657,2]
[370412520,1752006648966,-14475.93,0.00024657,2]
[370412521,1752006648976,-968.55,0.00024657,2]
[370412522,1752006648986,-581.14,0.00024657,2]
[370412523,1752006648995,-1607.47,0.00024657,2]
[370412524,1752006649005,-1422.02,0.00024657,2]
[370412525,1752006649014,-519.93,0.00024657,2]
[370412526,1752006649024,-622.59,0.00024657,2]
[370412527,1752006649034,-460.0,0.00024657,2]
[370412528,1752006649044,-460.0,0.00024657,2]
[370412529,1752006649053,-460.0,0.00024657,2]
[370412530,1752006649062,-3809.39,0.00024657,2]
[370412531,1752006649071,-801.2,0.00024657,2]
[370412532,1752006649081,-460.0,0.00024657,2]
[370412533,1752006649090,-33338.38,0.00024657,2]
[370412534,1752006649099,-724.1,0.00024657,2]
[370412535,1752006649108,-1787.95,0.00024657,2]
[370412536,1752006649118,-461.26,0.00024657,2]
[370412537,1752006649128,-946.09,0.00024657,2]
[370412538,1752006649137,-1720.78,0.00024657,2]
[370412539,1752006649147,-789.08,0.00024657,2]
[370412540,1752006649157,-460.0,0.00024657,2]
[370412541,1752006649167,-4577.82,0.00024657,2]
[370412542,1752006649177,-1137.01,0.00024657,2]
[370412543,1752006649186,-1206.15,0.00024657,2]
[370412544,1752006649197,-460.0,0.00024657,2]
[370412545,1752006649207,-3476.23,0.00024657,2]
[370412546,1752006649216,-2973.03,0.00024657,2]
[370412547,1752006649226,-460.0,0.00024657,2]
[370412548,1752006649237,-3052.64,0.00024657,2]
[370412549,1752006649247,-460.0,0.00024657,2]
[370412550,1752006649256,-460.0,0.00024657,2]
[370412551,1752006649266,-1744.76,0.00024657,2]
[370412552,1752006649275,-460.0,0.00024657,2]
[370412553,1752006649284,-460.0,0.00024657,2]
[370412554,1752006649294,-803.62,0.00024657,2]
[370412555,1752006649303,-460.0,0.00024657,2]
[370412556,1752006649313,-984.13,0.00024657,2]
[370412557,1752006649323,-460.0,0.00024657,2]
[370412558,1752006649332,-667.9,0.00024657,2]
[370412559,1752006649342,-460.0,0.00024657,2]
[370412560,1752006649352,-460.0,0.00024657,2]
[370412561,1752006649362,-1766.94,0.00024657,2]
[370412562,1752006649372,-1876.23,0.00024657,2]
[370412563,1752006649381,-460.0,0.00024657,2]
[370412564,1752006649391,-1274.3,0.00024657,2]
[370412565,1752006649400,-460.0,0.00024657,2]
[370412566,1752006649410,-5700.34,0.00024657,2]
[370412567,1752006649421,-1263.98,0.00024657,2]
[370412568,1752006649435,-1824.34,0.00024657,2]
[370412569,1752006649444,-460.0,0.00024657,2]
[370412570,1752006649454,-719.17,0.00024657,2]
[370412571,1752006649464,-460.0,0.00024657,2]
[370412572,1752006649473,-460.0,0.00024657,2]
[370412573,1752006649483,-460.0,0.00024657,2]
[370412574,1752006649492,-460.0,0.00024657,2]
[370412575,1752006649504,-573.01,0.00024657,2]
[370412576,1752006649514,-3594.24,0.00024657,2]
[370412577,1752006649523,-460.0,0.00024657,2]
[370412578,1752006649532,-1179.07,0.00024657,2]
[370412579,1752006649542,-7759.09,0.00024657,2]
[370412580,1752006649551,-7355.34,0.00024657,2]
[370412581,1752006649561,-7068.12,0.00024657,2]
[370412582,1752006649571,-584.78,0.00024657,2]
[370412583,1752006649580,-460.0,0.00024657,2]
[370412584,1752006649589,-966.29,0.00024657,2]
[370412585,1752006649599,-1109.53,0.00024657,2]
[370412586,1752006649609,-6583.76,0.00024657,2]
[370412587,1752006649619,-3305.58,0.00024657,2]
[370412588,1752006649628,-460.0,0.00024657,2]
[370412589,1752006649638,-581.14,0.00024657,2]
[370412590,1752006649647,-509.74,0.00024657,2]
[370412591,1752006649657,-1790.01,0.00024657,2]
[370412592,1752006649667,-460.0,0.00024657,2]
[370412593,1752006649676,-2398.94,0.00024657,2]
[370412594,1752006649686,-1000.0,0.00024657,2]
[370412595,1752006649696,-460.0,0.00024657,2]
[370412596,1752006649705,-743.25,0.00024657,2]
[370412597,1752006649714,-3556.87,0.00024657,2]
[370412598,1752006649724,-1043.21,0.00024657,2]
[370412599,1752006649733,-460.0,0.00024657,2]
[370412600,1752006649742,-539.49,0.00024657,2]
[370412601,1752006649751,-460.0,0.00024657,2]
[370412602,1752006649761,-460.0,0.00024657,2]
[370412603,1752006649770,-460.0,0.00024657,2]
[370412604,1752006649780,-460.0,0.00024657,2]
[370412605,1752006649789,-460.0,0.00024657,2]
[370412606,1752006649798,-460.0,0.00024657,2]
[370412607,1752006649807,-842.94,0.00024657,2]
[370412608,1752006649817,-569.6,0.00024657,2]
[370412609,1752006649826,-2044.43,0.00024657,2]
[370412610,1752006649835,-460.0,0.00024657,2]
[370412611,1752006649845,-861.28,0.00024657,2]
[370412612,1752006649855,-907.02,0.00024657,2]
[370412613,1752006649865,-460.0,0.00024657,2]
[370412614,1752006649875,-2362.47,0.00024657,2]
[370412615,1752006649885,-8555.59,0.00024657,2]
[370412616,1752006649894,-151.0,0.00024657,7]
[370412617,1752006649904,-460.0,0.00024657,2]
[370412618,1752006649914,-3019.69,0.00024657,2]
[370412619,1752006649924,-1475.02,0.00024657,2]
[370412620,1752006649934,-460.0,0.00024657,2]
[370412621,1752006649943,-2665.79,0.00024657,2]
[370412622,1752006649953,-460.0,0.00024657,2]
[370412623,1752006649963,-1658.53,0.00024657,2]
[370412624,1752006649972,-6001.45,0.00024657,2]
[370412625,1752006649982,-655.74,0.00024657,2]
[370412626,1752006649992,-460.0,0.00024657,2]
[370412627,1752006650001,-1985.83,0.00024657,2]
[370412628,1752006650011,-1891.15,0.00024657,2]
[370412629,1752006650020,-460.0,0.00024657,2]
[370412630,1752006650030,-460.0,0.00024657,2]
[370412631,1752006650039,-4619.26,0.00024657,2]
[370412632,1752006650049,-1521.2,0.00024657,2]
[370412633,1752006650059,-4619.26,0.00024657,2]
[370412634,1752006650068,-2866.0,0.00024657,2]
[370412635,1752006650078,-460.0,0.00024657,2]
[370412636,1752006650088,-4619.26,0.00024657,2]
[370412637,1752006650097,-4619.26,0.00024657,2]
[370412638,1752006650108,-4619.26,0.00024657,2]
[370412639,1752006650118,-4619.26,0.00024657,2]
[370412640,1752006650128,-4619.26,0.00024657,2]
[370412641,1752006650138,-4619.26,0.00024657,2]
[370412642,1752006650149,-4619.26,0.00024657,2]
[370412643,1752006650159,-4619.26,0.00024657,2]
[370412644,1752006650169,-460.0,0.00024657,2]
[370412645,1752006650179,-1480.94,0.00024657,2]
[370412646,1752006650189,-610.04,0.00024657,2]
[370412647,1752006650199,-678.96,0.00024657,2]
[370412648,1752006650209,-460.0,0.00024657,2]
[370412649,1752006650219,-1645.38,0.00024657,2]
[370412650,1752006650230,-564.21,0.00024657,2]
[370412651,1752006650240,-643.43,0.00024657,2]
[370412652,1752006650250,-460.0,0.00024657,2]
[370412653,1752006650260,-460.0,0.00024657,2]
[370412654,1752006650270,-460.0,0.00024657,2]
[370412655,1752006650280,-460.0,0.00024657,2]
[370412656,1752006650290,-794.85,0.00024657,2]
[370412657,1752006650300,-2364.98,0.00024657,2]
[370412658,1752006650310,-1652.54,0.00024657,2]
[370412659,1752006650320,-2928.64,0.00024657,2]
[370412660,1752006650330,-2946.89,0.00024657,2]
[370412661,1752006650340,-2797.0,0.00024657,2]
[370412662,1752006650350,-9506.77,0.00024657,2]
[370412663,1752006650360,-460.0,0.00024657,2]
[370412664,1752006650370,-482.16663916,0.00024657,2]
[370412665,1752006650380,-15019.85,0.00024657,2]
[370412666,1752006650390,-460.0,0.00024657,2]
[370412667,1752006650400,-500.0,0.00024657,2]
[370412668,1752006650410,-1973.47,0.00024657,2]
[370412669,1752006650420,-809.52,0.00024657,2]
[370412670,1752006650435,-856.24,0.00024657,2]
[370412671,1752006650445,-582.14592077,0.00024657,2]
[370412672,1752006650455,-1156.75,0.00024657,2]
[370412673,1752006650465,-19949.51,0.00024657,2]
[370412674,1752006650475,-625.04,0.00024657,2]
[370412675,1752006650485,-10264.03,0.00024657,2]
[370412676,1752006650495,-460.0,0.00024657,2]
[370412677,1752006650506,-460.0,0.00024657,2]
[370412678,1752006650517,-2739.33,0.00024657,2]
[370412679,1752006650526,-2419.23,0.00024657,2]
[370412680,1752006650536,-460.0,0.00024657,2]
[370412681,1752006650547,-460.0,0.00024657,2]
[370412682,1752006650556,-508.42,0.00024657,2]
[370412683,1752006650566,-507.69,0.00024657,2]
[370412684,1752006650576,-2196.77,0.00024657,2]
[370412685,1752006650587,-2260.1,0.00024657,2]
[370412686,1752006650596,-460.0,0.00024657,2]
[370412687,1752006650606,-460.0,0.00024657,2]
[370412688,1752006650616,-1882.52,0.00024657,2]
[370412689,1752006650626,-592.04266497,0.00024657,2]
[370412690,1752006650636,-855.42,0.00024657,2]
[370412691,1752006650646,-3172.98,0.00024657,2]
[370412692,1752006650656,-460.0,0.00024657,2]
[370412693,1752006650665,-91104.72,0.00024657,2]
[370412694,1752006650675,-1759.3,0.00024657,2]
[370412695,1752006650685,-460.0,0.00024657,2]
[370412696,1752006650695,-1125.1,0.00024657,2]
[370412697,1752006650705,-454.97980268,0.00024657,2]
[370412698,1752006650714,-460.0,0.00024657,2]
[370412699,1752006650724,-460.0,0.00024657,2]
[370412700,1752006650734,-460.0,0.00024657,2]
[370412701,1752006650744,-8916.17,0.00024657,2]
[370412702,1752006650754,-460.0,0.00024657,2]
[370412703,1752006650764,-688.17,0.00024657,2]
[370412704,1752006650774,-14368.93,0.00024657,2]
[370412705,1752006650783,-228.02662467,0.00024657,2]
[370412706,1752006650793,-576.09,0.00024657,2]
[370412707,1752006650803,-2128.2,0.00024657,2]
[370412708,1752006650812,-12789.71,0.00024657,2]
[370412709,1752006650822,-2592.69,0.00024657,2]
[370412710,1752006650832,-547.27,0.00024657,2]
[370412711,1752006650841,-872.42,0.00024657,2]
[370412712,1752006650851,-473.86,0.00024657,2]
[370412713,1752006650860,-460.0,0.00024657,2]
[370412714,1752006650870,-3940.84,0.00024657,2]
[370412715,1752006650880,-889.98,0.00024657,2]
[370412716,1752006650890,-1629.16,0.00024657,2]
[370412717,1752006650900,-1457.42,0.00024657,2]
[370412718,1752006650909,-1496.86,0.00024657,2]
[370412719,1752006650919,-460.0,0.00024657,2]
[370412720,1752006650929,-4279.57,0.00024657,2]
[370412721,1752006650939,-460.0,0.00024657,2]
[370412722,1752006650948,-151.0,0.00024657,7]
[370412723,1752006650958,-151.0,0.00024657,7]
[370412724,1752006650968,-460.0,0.00024657,2]
[370412725,1752006650978,-1799.95,0.00024657,2]
[370412726,1752006650987,-460.0,0.00024657,2]
[370412727,1752006650997,-745.69,0.00024657,2]
[370412728,1752006651006,-151.0,0.00024657,7]
[370412729,1752006651016,-2155.34,0.00024657,2]
[370412730,1752006651026,-151.0,0.00024657,7]
[370412731,1752006651035,-151.0,0.00024657,7]
[370412732,1752006651045,-1498.76,0.00024657,2]
[370412733,1752006651056,-151.0,0.00024657,7]
[370412734,1752006651066,-151.0,0.00024657,7]
[370412735,1752006651076,-460.0,0.00024657,2]
[370412736,1752006651085,-151.0,0.00024657,7]
[370412737,1752006651095,-3864.27,0.00024657,2]
[370412738,1752006651105,-151.0,0.00024657,7]
[370412739,1752006651114,-151.0,0.00024657,7]
[370412740,1752006651124,-2313.96,0.00024657,2]
[370412741,1752006651134,-151.0,0.00024657,7]
[370412742,1752006651144,-151.0,0.00024657,7]
[370412743,1752006651154,-573.54,0.00024657,2]
[370412744,1752006651165,-151.0,0.00024657,7]
[370412745,1752006651175,-559.17,0.00024657,2]
[370412746,1752006651185,-460.0,0.00024657,2]
[370412747,1752006651195,-460.0,0.00024657,2]
[370412748,1752006651206,-151.0,0.00024657,7]
[370412749,1752006651216,-2195.9,0.00024657,2]
[370412750,1752006651226,-8157.47,0.00024657,2]
[370412751,1752006651237,-151.0,0.00024657,7]
[370412752,1752006651247,-2522.25,0.00024657,2]
[370412753,1752006651257,-165.33174,0.00024657,7]
[370412754,1752006651267,-500.0,0.00024657,2]
[370412755,1752006651277,-460.0,0.00024657,2]
[370412756,1752006651287,-460.0,0.00024657,2]
[370412757,1752006651298,-460.0,0.00024657,2]
[370412758,1752006651308,-460.0,0.00024657,2]
[370412759,1752006651318,-10451.55,0.00024657,2]
[370412760,1752006651328,-8591.64,0.00024657,2]
[370412761,1752006651339,-188.94435504,0.00024657,2]
[370412762,1752006651349,-460.0,0.00024657,2]
[370412763,1752006651359,-1611.26,0.00024657,2]
[370412764,1752006651370,-1700.32,0.00024657,2]
[370412765,1752006651381,-505.11,0.00024657,2]
[370412766,1752006651391,-460.0,0.00024657,2]
[370412767,1752006651401,-2310.02,0.00024657,2]
[370412768,1752006651412,-842.78,0.00024657,2]
[370412769,1752006651423,-3224.62,0.00024657,2]
[370412770,1752006651437,-460.0,0.00024657,2]
[370412771,1752006651447,-460.0,0.00024657,2]
[370412772,1752006651458,-2097.82,0.00024657,2]
[370412773,1752006651469,-1816.86,0.00024657,2]
[370412774,1752006651479,-512.27,0.00024657,2]
[370412775,1752006651489,-460.0,0.00024657,2]
[370412776,1752006651499,-881.02,0.00024657,2]
[370412777,1752006651511,-2984.14,0.00024657,2]
[370412778,1752006651522,-544.61,0.00024657,2]
[370412779,1752006651531,-3501.06,0.00024657,2]
[370412780,1752006651542,-460.0,0.00024657,2]
[370412781,1752006651552,-460.0,0.00024657,2]
[370412782,1752006651561,-151.0,0.00024657,7]
[370412783,1752006651571,-151.0,0.00024657,7]
[370412784,1752006651581,-460.0,0.00024657,2]
[370412785,1752006651591,-1032.38,0.00024657,2]
[370412786,1752006651601,-13246.59,0.00024657,2]
[370412787,1752006651610,-13387.92,0.00024657,2]
[370412788,1752006651621,-460.0,0.00024657,2]
[370412789,1752006651631,-1943.71,0.00024657,2]
[370412790,1752006651640,-11903.42,0.00024657,2]
[370412791,1752006651651,-838.27,0.00024657,2]
[370412792,1752006651661,-1091.59,0.00024657,2]
[370412793,1752006651671,-663.76,0.00024657,2]
[370412794,1752006651681,-481.54,0.00024657,2]
[370412795,1752006651691,-1692.54,0.00024657,2]
[370412796,1752006651701,-1549.52,0.00024657,2]
[370412797,1752006651711,-460.0,0.00024657,2]
[370412798,1752006651720,-1194.0,0.00024657,2]
[370412799,1752006651730,-897.31,0.00024657,2]
[370412800,1752006651739,-8434.95,0.00024657,2]
[370412801,1752006651750,-460.0,0.00024657,2]
[370412802,1752006651759,-460.0,0.00024657,2]
[370412803,1752006651769,-4545.11,0.00024657,2]
[370412804,1752006651779,-947.19,0.00024657,2]
[370412805,1752006651790,-492.29932294,0.00024657,2]
[370412806,1752006651800,-2373.86,0.00024657,2]
[370412807,1752006651810,-460.0,0.00024657,2]
[370412808,1752006651820,-1287.63,0.00024657,2]
[370412809,1752006651830,-568.17,0.00024657,2]
[370412810,1752006651840,-883.28,0.00024657,2]
[370412811,1752006651850,-704.83,0.00024657,2]
[370412812,1752006651860,-460.0,0.00024657,2]
[370412813,1752006651870,-7264.57,0.00024657,2]
[370412814,1752006651880,-616.9,0.00024657,2]
[370412815,1752006651890,-460.0,0.00024657,2]
[370412816,1752006651900,-5878.11,0.00024657,2]
[370412817,1752006651910,-1078.09,0.00024657,2]
[370412818,1752006651920,-476.76,0.00024657,2]
[370412819,1752006651930,-460.0,0.00024657,2]
[370412820,1752006651940,-460.0,0.00024657,2]
[370412821,1752006651949,-460.0,0.00024657,2]
[370412822,1752006651959,-460.0,0.00024657,2]
[370412823,1752006651969,-3180.55,0.00024657,2]
[370412824,1752006651979,-460.0,0.00024657,2]
[370412825,1752006651988,-3153.04,0.00024657,2]
[370412826,1752006651999,-561.94,0.00024657,2]
[370412827,1752006652008,-1642.37,0.00024657,2]
[370412828,1752006652018,-980.9,0.00024657,2]
[370412829,1752006652028,-569.68,0.00024657,2]
[370412830,1752006652038,-460.0,0.00024657,2]
[370412831,1752006652048,-460.0,0.00024657,2]
[370412832,1752006652058,-783.61,0.00024657,2]
[370412833,1752006652393,-9153.79,0.00024657,2]
[370412834,1752006652417,-460.0,0.00024657,2]
[370412835,1752006652430,-1558.36,0.00024657,2]
[370412836,1752006652439,-460.0,0.00024657,2]
[370412837,1752006652449,-2659.4,0.00024657,2]
[370412838,1752006652458,-202.45862216,0.00024657,2]
[370412839,1752006652468,-3135.18,0.00024657,2]
[370412840,1752006652478,-1182.73,0.00024657,2]
[370412841,1752006652487,-814.52,0.00024657,2]
[370412842,1752006652501,-618.26,0.00024657,2]
[370412843,1752006652511,-7600.17,0.00024657,2]
[370412844,1752006652520,-490.0,0.00024657,2]
[370412845,1752006652530,-911.19,0.00024657,2]
[370412846,1752006652539,-460.0,0.00024657,2]
[370412847,1752006652549,-674.29,0.00024657,2]
[370412848,1752006652558,-728.16,0.00024657,2]
[370412849,1752006652568,-1728.27,0.00024657,2]
[370412850,1752006652577,-460.0,0.00024657,2]
[370412851,1752006652587,-460.0,0.00024657,2]
[370412852,1752006652597,-6940.86,0.00024657,2]
[370412853,1752006652606,-460.0,0.00024657,2]
[370412854,1752006652618,-460.0,0.00024657,2]
[370412855,1752006652628,-1213.99,0.00024657,2]
[370412856,1752006652637,-1819.33,0.00024657,2]
[370412857,1752006652647,-3216.41,0.00024657,2]
[370412858,1752006652657,-737.373192,0.00024657,7]
[370412859,1752006652666,-737.373192,0.00024657,7]
[370412860,1752006652676,-2198.67,0.00024657,2]
[370412861,1752006652686,-737.373192,0.00024657,7]
[370412862,1752006652695,-476.33,0.00024657,2]
[370412863,1752006652706,-737.373192,0.00024657,7]
[370412864,1752006652715,-737.373192,0.00024657,7]
[370412865,1752006652725,-737.373192,0.00024657,7]
[370412866,1752006652735,-737.373192,0.00024657,7]
[370412867,1752006652745,-737.373192,0.00024657,7]
[370412868,1752006652755,-887.87,0.00024657,2]
[370412869,1752006652764,-737.373192,0.00024657,7]
[370412870,1752006652774,-737.373192,0.00024657,7]
[370412871,1752006652784,-9859.52,0.00024657,2]
[370412872,1752006652794,-1271.1,0.00024657,2]
[370412873,1752006652804,-737.373192,0.00024657,7]
[370412874,1752006652813,-460.0,0.00024657,2]
[370412875,1752006652823,-737.373192,0.00024657,7]
[370412876,1752006652833,-1790.61,0.00024657,2]
[370412877,1752006652842,-1968.1,0.00024657,2]
[370412878,1752006652852,-737.373192,0.00024657,7]
[370412879,1752006652861,-765.23,0.00024657,2]
[370412880,1752006652871,-737.373192,0.00024657,7]
[370412881,1752006652881,-737.373192,0.00024657,7]
[370412882,1752006652890,-737.373192,0.00024657,7]
[370412883,1752006652899,-737.373192,0.00024657,7]
[370412884,1752006652909,-737.373192,0.00024657,7]
[370412885,1752006652918,-737.373192,0.00024657,7]
[370412886,1752006652928,-737.373188,0.00024657,7]
[370412887,1752006652937,-2507.61,0.00024657,2]
[370412888,1752006652947,-911.44,0.00024657,2]
[370412889,1752006652956,-460.0,0.00024657,2]
[370412890,1752006652966,-460.0,0.00024657,2]
[370412891,1752006652975,-11290.62,0.00024657,2]
[370412892,1752006652985,-490.0,0.00024657,2]
[370412893,1752006652994,-460.0,0.00024657,2]
[370412894,1752006653003,-460.0,0.00024657,2]
[370412895,1752006653013,-797.25,0.00024657,2]
[370412896,1752006653023,-460.0,0.00024657,2]
[370412897,1752006653032,-490.0,0.00024657,2]
[370412898,1752006653041,-1005.7,0.00024657,2]
[370412899,1752006653051,-9391.66,0.00024657,2]
[370412900,1752006653060,-361.60444597,0.00024657,2]
[370412901,1752006653070,-810.71,0.00024657,2]
[370412902,1752006653079,-10952.69,0.00024657,2]
[370412903,1752006653088,-460.0,0.00024657,2]
[370412904,1752006653097,-1728.24,0.00024657,2]
[370412905,1752006653106,-2620.31,0.00024657,2]
[370412906,1752006653115,-1230.44,0.00024657,2]
[370412907,1752006653126,-2502.03,0.00024657,2]
[370412908,1752006653135,-1185.47,0.00024657,2]
[370412909,1752006653145,-3400.61,0.00024657,2]
[370412910,1752006653154,-1441.71,0.00024657,2]
[370412911,1752006653163,-460.0,0.00024657,2]
[370412912,1752006653173,-1531.67,0.00024657,2]
[370412913,1752006653183,-860.11,0.00024657,2]
[370412914,1752006653192,-460.0,0.00024657,2]
[370412915,1752006653202,-460.0,0.00024657,2]
[370412916,1752006653212,-6021.63,0.00024657,2]
[370412917,1752006653221,-460.0,0.00024657,2]
[370412918,1752006653231,-42604.55,0.00024657,2]
[370412919,1752006653241,-575.83,0.00024657,2]
[370412920,1752006653250,-4575.0,0.00024657,2]
[370412921,1752006653260,-789.67,0.00024657,2]
[370412922,1752006653269,-526.48,0.00024657,2]
[370412923,1752006653279,-190.10702641,0.00024657,2]
[370412924,1752006653289,-855.99,0.00024657,2]
[370412925,1752006653299,-6488.17,0.00024657,2]
[370412926,1752006653308,-500.0,0.00024657,2]
[370412927,1752006653318,-460.0,0.00024657,2]
[370412928,1752006653328,-705.27,0.00024657,2]
[370412929,1752006653337,-644.33,0.00024657,2]
[370412930,1752006653347,-460.0,0.00024657,2]
[370412931,1752006653356,-1156.19,0.00024657,2]
[370412932,1752006653366,-9255.14,0.00024657,2]
[370412933,1752006653377,-460.0,0.00024657,2]
[370412934,1752006653386,-460.0,0.00024657,2]
[370412935,1752006653396,-2374.17,0.00024657,2]
[370412936,1752006653406,-285.83330819,0.00024657,2]
[370412937,1752006653415,-460.0,0.00024657,2]
[370412938,1752006653427,-19664.31,0.00024657,2]
[370412939,1752006653437,-4791.04,0.00024657,2]
[370412940,1752006653447,-460.0,0.00024657,2]
[370412941,1752006653456,-460.0,0.00024657,2]
[370412942,1752006653466,-460.0,0.00024657,2]
[370412943,1752006653475,-577.18,0.00024657,2]
[370412944,1752006653485,-460.0,0.00024657,2]
[370412945,1752006653494,-666.89,0.00024657,2]
[370412946,1752006653504,-460.0,0.00024657,2]
[370412947,1752006653513,-644.72,0.00024657,2]
[370412948,1752006653522,-460.0,0.00024657,2]
[370412949,1752006653531,-639.26,0.00024657,2]
[370412950,1752006653540,-620.65,0.00024657,2]
[370412951,1752006653550,-13801.58,0.00024657,2]
[370412952,1752006653559,-495.38,0.00024657,2]
[370412953,1752006653568,-556.69,0.00024657,2]
[370412954,1752006653578,-771.52,0.00024657,2]
[370412955,1752006653587,-1441.17,0.00024657,2]
[370412956,1752006653596,-460.0,0.00024657,2]
[370412957,1752006653606,-2288.59,0.00024657,2]
[370412958,1752006653615,-2549.15,0.00024657,2]
[370412959,1752006653626,-780.45,0.00024657,2]
[370412960,1752006653636,-1129.2,0.00024657,2]
[370412961,1752006653645,-460.0,0.00024657,2]
[370412962,1752006653655,-460.0,0.00024657,2]
[370412963,1752006653664,-1069.51,0.00024657,2]
[370412964,1752006653673,-460.0,0.00024657,2]
[370412965,1752006653683,-460.0,0.00024657,2]
[370412966,1752006653692,-460.0,0.00024657,2]
[370412967,1752006653701,-1325.52,0.00024657,2]
[370412968,1752006653710,-460.0,0.00024657,2]
[370412969,1752006653720,-1446.92,0.00024657,2]
[370412970,1752006653730,-7056.28,0.00024657,2]
[370412971,1752006653739,-825.02,0.00024657,2]
[370412972,1752006653749,-980.81,0.00024657,2]
[370412973,1752006653758,-460.0,0.00024657,2]
[370412974,1752006653768,-506.89,0.00024657,2]
[370412975,1752006653777,-674.16,0.00024657,2]
[370412976,1752006653786,-460.0,0.00024657,2]
[370412977,1752006653795,-2069.71,0.00024657,2]
[370412978,1752006653805,-2143.15,0.00024657,2]
[370412979,1752006653814,-4524.91,0.00024657,2]
[370412980,1752006653823,-1265.81,0.00024657,2]
[370412981,1752006653832,-460.0,0.00024657,2]
[370412982,1752006653842,-460.0,0.00024657,2]
[370412983,1752006653851,-1704.76,0.00024657,2]
[370412984,1752006653861,-1168.64,0.00024657,2]
[370412985,1752006653870,-2806.92,0.00024657,2]
[370412986,1752006653879,-897.27,0.00024657,2]
[370412987,1752006653888,-460.0,0.00024657,2]
[370412988,1752006653898,-460.0,0.00024657,2]
[370412989,1752006653907,-460.0,0.00024657,2]
[370412990,1752006653917,-2236.09,0.00024657,2]
[370412991,1752006653926,-490.0,0.00024657,2]